fUST/lending_fUST_20250129
["ID","MTS","AMOUNT","RATE_DAILY","PERIOD"]
[350799172,1738135850630,-500.0,0.00017808,2]
[350799173,1738135850639,-500.0,0.00017808,2]
[350799174,1738135850649,-787.83,0.00017808,2]
[350799175,1738135850659,-500.0,0.00017808,2]
[350799176,1738135850669,-500.0,0.00017808,2]
[350799177,1738135850680,-675.26,0.00017808,2]
[350799178,1738135850690,-500.0,0.00017808,2]
[350799179,1738135850700,-500.0,0.00017808,2]
[350799180,1738135850709,-500.0,0.00017808,2]
[350799181,1738135850719,-500.0,0.00017808,2]
[350799182,1738135850728,-500.0,0.00017808,2]
[350799183,1738135850737,-3697.8,0.00017808,2]
[350799184,1738135850746,-348.84,0.00017808,2]
[350799185,1738135850756,-1074.26,0.00017808,2]
[350799186,1738135850765,-500.0,0.00017808,2]
[350799187,1738135850775,-723.78,0.00017808,2]
[350799188,1738135850784,-678.75,0.00017808,2]
[350799189,1738135850794,-395.0,0.00017824,2]
[350799190,1738135850803,-500.0,0.00017945,2]
[350799191,1738135850812,-348.7836467,0.00017945,2]
[350799192,1738135850822,-654.86,0.00017945,2]
[350799193,1738135850833,-500.0,0.00017945,2]
[350799194,1738135850844,-461.24,0.00017945,2]
[350799195,1738135850856,-500.0,0.00017945,2]
[350799196,1738135850866,-586.69,0.00017945,2]
[350799197,1738135850876,-500.0,0.00017945,2]
[350799198,1738135850887,-464.26912846,0.00017945,2]
[350799199,1738135850897,-3908.02,0.00017945,2]
[350799200,1738135850907,-1070.39,0.00017945,2]
[350799201,1738135850917,-800.9,0.00017945,2]
[350799202,1738135850929,-500.0,0.00017945,2]
[350799203,1738135850938,-500.0,0.00017945,2]
[350799204,1738135850948,-500.0,0.00017945,2]
[350799205,1738135850958,-12653.06,0.00017945,2]
[350799206,1738135850967,-512.95,0.00017945,2]
[350799207,1738135850979,-358.92,0.00017945,2]
[350799208,1738135850991,-500.0,0.00017945,2]
[350799209,1738135851000,-500.0,0.00017945,2]
[350799210,1738135851009,-805.85,0.00017945,2]
[350799211,1738135851019,-1284.94,0.00017945,2]
[350799212,1738135851028,-383.12,0.00017945,2]
[350799213,1738135851038,-500.0,0.00017945,2]
[350799214,1738135851047,-787.83,0.00017945,2]
[350799215,1738135851059,-500.0,0.00017945,2]
[350799216,1738135851069,-500.0,0.00017945,2]
[350799217,1738135851078,-675.26,0.00017945,2]
[350799218,1738135851088,-500.0,0.00017945,2]
[350799219,1738135851098,-500.0,0.00017945,2]
[350799220,1738135851107,-500.0,0.00017945,2]
[350799221,1738135851118,-500.0,0.00017945,2]
[350799222,1738135851128,-500.0,0.00017945,2]
[350799223,1738135851137,-3697.8,0.00017945,2]
[350799224,1738135851146,-1074.26,0.00017945,2]
[350799225,1738135851156,-500.0,0.00017945,2]
[350799226,1738135851165,-723.78,0.00017945,2]
[350799227,1738135851174,-678.75,0.00017945,2]
[350799228,1738135851183,-420.0,0.00017963,2]
[350799229,1738135851193,-544.50244473,0.00018,2]
[350799230,1738135851202,-1000.0,0.00018,2]
[350799231,1738135851211,-6524.31655904,0.00018,2]
[350799232,1738135851220,-500.0,0.00018026,2]
[350799233,1738135851229,-156.339,0.0001805,2]
[350799234,1738135851239,-500.0,0.00018082,2]
[350799235,1738135851248,-654.86,0.00018082,2]
[350799236,1738135851257,-500.0,0.00018082,2]
[350799237,1738135851267,-268.04,0.00018082,2]
[350799238,1738135851276,-500.0,0.00018082,2]
[350799239,1738135851286,-3908.02,0.00018082,2]
[350799240,1738135851295,-1070.39,0.00018082,2]
[350799241,1738135851305,-800.9,0.00018082,2]
[350799242,1738135851314,-500.0,0.00018082,2]
[350799243,1738135851324,-500.0,0.00018082,2]
[350799244,1738135851333,-500.0,0.00018082,2]
[350799245,1738135851343,-12653.06,0.00018082,2]
[350799246,1738135851353,-512.95,0.00018082,2]
[350799247,1738135851363,-500.0,0.00018082,2]
[350799248,1738135851372,-500.0,0.00018082,2]
[350799249,1738135851382,-805.85,0.00018082,2]
[350799250,1738135851391,-1284.94,0.00018082,2]
[350799251,1738135851401,-489.16,0.00018082,2]
[350799252,1738135851410,-787.83,0.00018082,2]
[350799253,1738135851420,-500.0,0.00018082,2]
[350799254,1738135851429,-500.0,0.00018082,2]
[350799255,1738135851439,-675.26,0.00018082,2]
[350799256,1738135851448,-500.0,0.00018082,2]
[350799257,1738135851458,-500.0,0.00018082,2]
[350799258,1738135851467,-322.63429094,0.00018082,2]
[350799259,1738135851476,-500.0,0.00018082,2]
[350799260,1738135851572,-500.0,0.00018082,2]
[350799261,1738135851582,-3697.8,0.00018082,2]
[350799262,1738135851591,-1074.26,0.00018082,2]
[350799263,1738135851601,-500.0,0.00018082,2]
[350799264,1738135851611,-723.78,0.00018082,2]
[350799265,1738135851620,-678.75,0.00018082,2]
[350799266,1738135851629,-235.903,0.00018219,2]
[350799267,1738135851639,-151.0,0.00018219,2]
[350799268,1738135851648,-610.67,0.00018219,2]
[350799269,1738135851657,-160.202296,0.00018219,2]
[350799270,1738135851667,-151.0,0.00018219,2]
[350799271,1738135851677,-654.86,0.00018219,2]
[350799272,1738135851686,-500.0,0.00018219,2]
[350799273,1738135851696,-500.0,0.00018219,2]
[350799274,1738135851705,-3908.02,0.00018219,2]
[350799275,1738135851714,-1070.39,0.00018219,2]
[350799276,1738135851723,-800.9,0.00018219,2]
[350799277,1738135851733,-151.0,0.00018219,2]
[350799278,1738135851742,-210.88,0.00018219,2]
[350799279,1738135851751,-500.0,0.00018219,2]
[350799280,1738135851760,-195.24847053,0.00018219,2]
[350799281,1738135851770,-12653.06,0.00018219,2]
[350799282,1738135851780,-512.95,0.00018219,2]
[350799283,1738135851789,-500.0,0.00018219,2]
[350799284,1738135851798,-224.57,0.00018219,2]
[350799285,1738135851807,-805.85,0.00018219,2]
[350799286,1738135851816,-1284.94,0.00018219,2]
[350799287,1738135851826,-787.83,0.00018219,2]
[350799288,1738135851835,-500.0,0.00018219,2]
[350799289,1738135851844,-500.0,0.00018219,2]
[350799290,1738135851853,-675.26,0.00018219,2]
[350799291,1738135851863,-500.0,0.00018219,2]
[350799292,1738135851872,-500.0,0.00018219,2]
[350799293,1738135851880,-500.0,0.00018219,2]
[350799294,1738135851889,-500.0,0.00018219,2]
[350799295,1738135851898,-3697.8,0.00018219,2]
[350799296,1738135851908,-1074.26,0.00018219,2]
[350799297,1738135851917,-446.29785688,0.00018219,2]
[350799298,1738135851926,-723.78,0.00018219,2]
[350799299,1738135851935,-678.75,0.00018219,2]
[350799300,1738135851944,-654.86,0.00018356,2]
[350799301,1738135851954,-551.96,0.00018356,2]
[350799302,1738135851963,-408.36,0.00018356,2]
[350799303,1738135851971,-3908.02,0.00018356,2]
[350799304,1738135851984,-1070.39,0.00018356,2]
[350799305,1738135851993,-800.9,0.00018356,2]
[350799306,1738135852002,-500.0,0.00018356,2]
[350799307,1738135852011,-12653.06,0.00018356,2]
[350799308,1738135852021,-512.95,0.00018356,2]
[350799309,1738135852030,-339.27757036,0.00018356,2]
[350799310,1738135852043,-160.72242964,0.00018356,2]
[350799311,1738135852052,-805.85,0.00018356,2]
[350799312,1738135852064,-1284.94,0.00018356,2]
[350799313,1738135852073,-745.48739036,0.00018356,2]
[350799321,1738136488536,332.595303,0.00013973,2]
[350799426,1738137038005,-1875.08976777,0.00015476,2]
[350799427,1738137038016,-1385.14035511,0.00015632,2]
[350799428,1738137038027,-503.90494983,0.00016438,2]
[350799429,1738137038036,-603.98,0.00016438,2]
[350799430,1738137038046,-500.0,0.00016438,2]
[350799431,1738137038057,-168.37890303,0.00016475,2]
[350799432,1738137038068,-300.0,0.00016571,2]
[350799433,1738137038077,-500.0,0.00016572,2]
[350799434,1738137038088,-500.0,0.00016572,2]
[350799435,1738137038097,-736.63,0.00016572,2]
[350799436,1738137038106,-500.0,0.00016573,2]
[350799437,1738137038116,-500.0,0.00016573,2]
[350799438,1738137038127,-7509.58,0.00016573,2]
[350799439,1738137038136,-500.0,0.00016573,2]
[350799440,1738137038145,-500.0,0.00016573,2]
[350799441,1738137038155,-2136.65,0.00016573,2]
[350799442,1738137038166,-500.0,0.00016573,2]
[350799443,1738137038175,-500.0,0.00016573,2]
[350799444,1738137038184,-500.0,0.00016573,2]
[350799445,1738137038198,-2467.29,0.00016573,2]
[350799446,1738137038211,-500.0,0.00016573,2]
[350799447,1738137038220,-500.0,0.00016573,2]
[350799448,1738137038229,-622.72,0.00016573,2]
[350799449,1738137038239,-500.0,0.00016573,2]
[350799451,1738137038248,-500.0,0.00016573,2]
[350799452,1738137038258,-622.84,0.00016573,2]
[350799453,1738137038270,-500.0,0.00016573,2]
[350799454,1738137038281,-500.0,0.00016573,2]
[350799455,1738137038290,-500.0,0.00016573,2]
[350799456,1738137038299,-500.0,0.00016573,2]
[350799457,1738137038308,-500.0,0.00016573,2]
[350799458,1738137038317,-500.0,0.00016573,2]
[350799459,1738137038326,-500.0,0.00016573,2]
[350799460,1738137038336,-500.0,0.00016573,2]
[350799461,1738137038347,-500.0,0.00016573,2]
[350799462,1738137038356,-1540.75,0.00016573,2]
[350799463,1738137038365,-500.0,0.00016575,2]
[350799464,1738137038383,-500.0,0.00016656,2]
[350799465,1738137038394,-500.0,0.00016709,2]
[350799466,1738137038403,-429.65152956,0.00016709,2]
[350799467,1738137038412,-214.97489689,0.00016709,2]
[350799468,1738137038424,-500.0,0.00016709,2]
[350799469,1738137038433,-500.0,0.00016709,2]
[350799470,1738137038443,-736.63,0.00016709,2]
[350799471,1738137038454,-500.0,0.0001671,2]
[350799472,1738137038465,-7509.58,0.0001671,2]
[350799473,1738137038476,-500.0,0.0001671,2]
[350799474,1738137038486,-2136.65,0.0001671,2]
[350799475,1738137038497,-500.0,0.0001671,2]
[350799476,1738137038507,-500.0,0.0001671,2]
[350799477,1738137038518,-500.0,0.0001671,2]
[350799478,1738137038528,-2467.29,0.0001671,2]
[350799479,1738137038537,-500.0,0.0001671,2]
[350799480,1738137038547,-500.0,0.0001671,2]
[350799481,1738137038557,-622.72,0.0001671,2]
[350799482,1738137038566,-500.0,0.0001671,2]
[350799483,1738137038576,-500.0,0.0001671,2]
[350799484,1738137038586,-500.0,0.0001671,2]
[350799485,1738137038595,-175.25,0.0001671,2]
[350799486,1738137038604,-500.0,0.0001671,2]
[350799487,1738137038614,-567.38,0.0001671,2]
[350799488,1738137038624,-500.0,0.0001671,2]
[350799489,1738137038634,-500.0,0.0001671,2]
[350799490,1738137038644,-193.24,0.0001671,2]
[350799491,1738137038653,-500.0,0.0001671,2]
[350799492,1738137038663,-500.0,0.0001671,2]
[350799493,1738137038672,-1540.75,0.0001671,2]
[350799494,1738137038685,-500.0,0.00016712,2]
[350799495,1738137038698,-500.0,0.00016846,2]
[350799496,1738137038714,-590.33518427,0.00016846,2]
[350799497,1738137038733,-736.63,0.00016846,2]
[350799498,1738137038748,-7509.58,0.00016847,2]
[350799499,1738137038757,-500.0,0.00016847,2]
[350799500,1738137038767,-2136.65,0.00016847,2]
[350799501,1738137038776,-500.0,0.00016847,2]
[350799502,1738137038785,-500.0,0.00016847,2]
[350799503,1738137038794,-340.46047836,0.00016847,2]
[350799504,1738137038804,-2467.29,0.00016847,2]
[350799505,1738137038813,-500.0,0.00016847,2]
[350799506,1738137038822,-500.0,0.00016847,2]
[350799507,1738137038834,-622.72,0.00016847,2]
[350799508,1738137038843,-500.0,0.00016847,2]
[350799509,1738137038852,-500.0,0.00016847,2]
[350799510,1738137038862,-500.0,0.00016847,2]
[350799511,1738137038871,-500.0,0.00016847,2]
[350799512,1738137038880,-500.0,0.00016847,2]
[350799513,1738137038890,-523.49,0.00016847,2]
[350799514,1738137038899,-500.0,0.00016847,2]
[350799515,1738137038908,-500.0,0.00016847,2]
[350799516,1738137038919,-1540.75,0.00016847,2]
[350799517,1738137038931,-500.0,0.00016849,2]
[350799518,1738137038940,-500.0,0.00016983,2]
[350799519,1738137038950,-736.63,0.00016983,2]
[350799520,1738137038959,-7509.58,0.00016984,2]
[350799521,1738137038968,-500.0,0.00016984,2]
[350799522,1738137038978,-2136.65,0.00016984,2]
[350799523,1738137038988,-500.0,0.00016984,2]
[350799524,1738137038997,-500.0,0.00016984,2]
[350799525,1738137039006,-2467.29,0.00016984,2]
[350799526,1738137039016,-500.0,0.00016984,2]
[350799527,1738137039026,-500.0,0.00016984,2]
[350799528,1738137039036,-622.72,0.00016984,2]
[350799529,1738137039045,-500.0,0.00016984,2]
[350799530,1738137039054,-500.0,0.00016984,2]
[350799531,1738137039064,-500.0,0.00016984,2]
[350799533,1738137039227,-270.76003013,0.00016984,2]
[350799534,1738137039236,-500.0,0.00016984,2]
[350799535,1738137039245,-500.0,0.00016984,2]
[350799536,1738137039255,-500.0,0.00016984,2]
[350799537,1738137039265,-1540.75,0.00016984,2]
[350799538,1738137039274,-500.0,0.00016986,2]
[350799539,1738137039284,-500.0,0.0001712,2]
[350799540,1738137039293,-736.63,0.0001712,2]
[350799541,1738137039303,-7509.58,0.00017121,2]
[350799542,1738137039312,-500.0,0.00017121,2]
[350799543,1738137039321,-2136.65,0.00017121,2]
[350799544,1738137039331,-500.0,0.00017121,2]
[350799545,1738137039340,-500.0,0.00017121,2]
[350799546,1738137039354,-2467.29,0.00017121,2]
[350799547,1738137039363,-500.0,0.00017121,2]
[350799548,1738137039372,-500.0,0.00017121,2]
[350799549,1738137039383,-622.72,0.00017121,2]
[350799550,1738137039392,-500.0,0.00017121,2]
[350799551,1738137039401,-500.0,0.00017121,2]
[350799552,1738137039410,-500.0,0.00017121,2]
[350799553,1738137039420,-401.96,0.00017121,2]
[350799554,1738137039429,-500.0,0.00017121,2]
[350799555,1738137039439,-500.0,0.00017121,2]
[350799556,1738137039449,-1540.75,0.00017121,2]
[350799557,1738137039458,-500.0,0.00017123,2]
[350799558,1738137039468,-500.50675355,0.00017253,2]
[350799560,1738137039478,-377.26905171,0.00017257,2]
[350799563,1738137039488,-500.0,0.00017257,2]
[350799564,1738137039497,-736.63,0.00017257,2]
[350799565,1738137039506,-7509.58,0.00017258,2]
[350799566,1738137039516,-500.0,0.00017258,2]
[350799567,1738137039525,-2136.65,0.00017258,2]
[350799568,1738137039535,-500.0,0.00017258,2]
[350799569,1738137039544,-500.0,0.00017258,2]
[350799570,1738137039554,-2467.29,0.00017258,2]
[350799572,1738137039563,-500.0,0.00017258,2]
[350799574,1738137039572,-500.0,0.00017258,2]
[350799576,1738137039581,-622.72,0.00017258,2]
[350799578,1738137039591,-213.17358808,0.00017258,2]
[350799579,1738137039616,-57.32641192,0.00017258,2]
[350799580,1738137039626,-500.0,0.00017258,2]
[350799581,1738137039635,-500.0,0.00017258,2]
[350799582,1738137039644,-500.0,0.00017258,2]
[350799583,1738137039654,-500.0,0.00017258,2]
[350799585,1738137039663,-1540.75,0.00017258,2]
[350799587,1738137039673,-500.0,0.0001726,2]
[350799589,1738137039683,-168.37890296,0.00017336,2]
[350799591,1738137039692,-500.0,0.00017394,2]
[350799593,1738137039704,-736.63,0.00017394,2]
[350799595,1738137039714,-7509.58,0.00017395,2]
[350799597,1738137039723,-500.0,0.00017395,2]
[350799599,1738137039732,-2136.65,0.00017395,2]
[350799601,1738137039742,-500.0,0.00017395,2]
[350799603,1738137039751,-500.0,0.00017395,2]
[350799605,1738137039761,-2467.29,0.00017395,2]
[350799607,1738137039770,-500.0,0.00017395,2]
[350799609,1738137039780,-500.0,0.00017395,2]
[350799611,1738137039789,-622.72,0.00017395,2]
[350799612,1738137039799,-500.0,0.00017395,2]
[350799614,1738137039809,-500.0,0.00017395,2]
[350799617,1738137039819,-500.0,0.00017395,2]
[350799618,1738137039828,-500.0,0.00017395,2]
[350799620,1738137039838,-1540.75,0.00017395,2]
[350799622,1738137039847,-500.0,0.00017397,2]
[350799624,1738137039859,-500.0,0.00017531,2]
[350799627,1738137039869,-736.63,0.00017531,2]
[350799629,1738137039880,-7509.58,0.00017532,2]
[350799631,1738137039893,-500.0,0.00017532,2]
[350799633,1738137039902,-1257.93554434,0.00017532,2]
[350799635,1738137039916,-306.71,0.00017532,2]
[350800084,1738137274490,591.9,0.00010959,2]
[350800085,1738137295203,210.99,0.00010959,2]
[350800086,1738137305674,175.83,0.00010959,2]
[350800087,1738137316157,226.45,0.00010959,2]
[350800088,1738137326635,321.91,0.00010959,2]
[350800089,1738137337271,268.26,0.00010959,2]
[350800090,1738137347744,267.95,0.00010959,2]
[350800091,1738137358237,291.13,0.00010959,2]
[350800092,1738137368975,242.61,0.00010959,2]
[350800093,1738137379463,233.01,0.00010959,2]
[350800094,1738137390049,317.51,0.00010959,2]
[350800095,1738137400535,264.59,0.00010959,2]
[350800096,1738137411108,220.5,0.00010959,2]
[350800097,1738137421602,183.75,0.00010959,2]
[350800098,1738137432085,153.12,0.00010959,2]
[350800099,1738137442610,765.63,0.00010959,2]
[350800104,1738137542517,338.842183,0.00013973,2]
[350800106,1738137686587,1001.9535033,0.00015101,2]
[350800107,1738137852647,1001.34246296,0.00015101,2]
[350803291,1738138232257,-704.42204817,0.0001525,2]
[350803292,1738138232267,-201.324185,0.00015527,2]
[350803294,1738138232277,-600.0,0.0001556,2]
[350803295,1738138232286,-1244.25376683,0.000165,2]
[350803297,1738138232298,-1755.74623317,0.000165,2]
[350803298,1738138232308,-173.72408683,0.0001651,2]
[350803389,1738138237954,-500.0,0.0001651,2]
[350803390,1738138237966,-495.897,0.0001651,2]
[350803392,1738138238061,-856.575,0.0001651,2]
[350803396,1738138238387,-973.80391317,0.0001651,2]
[350803397,1738138238398,-300.0,0.00016519,2]
[350803398,1738138238407,-3000.0,0.0001652,2]
[350803399,1738138238416,-3000.0,0.0001653,2]
[350803400,1738138238426,-3000.0,0.0001654,2]
[350803401,1738138238436,-500.0,0.00016548,2]
[350803402,1738138238445,-500.0,0.00016548,2]
[350803403,1738138238455,-500.0,0.00016548,2]
[350803404,1738138238466,-1479.11,0.00016548,2]
[350803405,1738138238475,-500.0,0.00016548,2]
[350803407,1738138238485,-500.0,0.00016549,2]
[350803408,1738138238496,-503.29889513,0.00016549,2]
[350803409,1738138238506,-500.0,0.00016549,2]
[350803410,1738138238516,-500.0,0.00016549,2]
[350803411,1738138238526,-1072.7,0.00016549,2]
[350803412,1738138238536,-500.0,0.00016549,2]
[350803413,1738138238545,-632.87,0.00016549,2]
[350803414,1738138238555,-500.0,0.00016549,2]
[350803415,1738138238565,-500.0,0.00016549,2]
[350803416,1738138238575,-500.0,0.00016549,2]
[350803417,1738138238585,-500.0,0.00016549,2]
[350803418,1738138238594,-500.0,0.00016549,2]
[350803419,1738138238604,-500.0,0.00016549,2]
[350803420,1738138238614,-500.0,0.00016549,2]
[350803421,1738138238623,-174.61020072,0.00016549,2]
[350803422,1738138238633,-500.0,0.00016549,2]
[350803423,1738138238643,-500.0,0.00016549,2]
[350803424,1738138238654,-1237.79,0.00016549,2]
[350803425,1738138238663,-5390.68,0.00016549,2]
[350803426,1738138238673,-500.0,0.00016549,2]
[350803427,1738138238682,-500.0,0.00016549,2]
[350803428,1738138238692,-1413.2948661,0.0001655,2]
[350803447,1738138240120,-168.37890296,0.00016449,2]
[350803448,1738138240131,-548.71880981,0.00016549,2]
[350803449,1738138240140,-1586.7051339,0.0001655,2]
[350803450,1738138240150,-500.0,0.00016558,2]
[350803451,1738138240159,-500.0,0.00016558,2]
[350803452,1738138240169,-555.3251714,0.00016558,2]
[350803453,1738138240179,-500.0,0.00016558,2]
[350803454,1738138240189,-500.0,0.00016558,2]
[350803455,1738138240199,-503.81171138,0.00016558,2]
[350803456,1738138240208,-509.44014121,0.00016558,2]
[350803457,1738138240218,-500.0,0.00016558,2]
[350803458,1738138240227,-500.0,0.00016558,2]
[350803459,1738138240237,-500.0,0.00016558,2]
[350803460,1738138240246,-500.0,0.00016558,2]
[350803461,1738138240255,-785.41,0.00016558,2]
[350803462,1738138240265,-500.0,0.00016558,2]
[350803463,1738138240274,-500.0,0.00016558,2]
[350803464,1738138240283,-1747.66,0.00016558,2]
[350803465,1738138240292,-500.0,0.00016558,2]
[350803466,1738138240301,-500.0,0.00016558,2]
[350803467,1738138240311,-500.0,0.00016558,2]
[350803468,1738138240320,-500.0,0.00016558,2]
[350803469,1738138240330,-500.0,0.00016558,2]
[350803470,1738138240339,-533.47732126,0.00016558,2]
[350803471,1738138240349,-500.0,0.00016558,2]
[350803472,1738138240358,-500.0,0.00016558,2]
[350803473,1738138240368,-500.0,0.00016558,2]
[350803475,1738138240377,-500.0,0.00016558,2]
[350803476,1738138240386,-500.0,0.00016558,2]
[350803477,1738138240395,-302.84087075,0.00016558,2]
[350803478,1738138240404,-176.97765602,0.00016558,2]
[350803479,1738138240414,-500.0,0.00016558,2]
[350803480,1738138240423,-529.88660035,0.00016558,2]
[350803481,1738138240434,-500.0,0.00016558,2]
[350803482,1738138240444,-500.0,0.00016558,2]
[350803483,1738138240454,-500.0,0.00016558,2]
[350803484,1738138240463,-500.0,0.00016558,2]
[350803485,1738138240473,-3000.0,0.0001656,2]
[350803486,1738138240482,-2715.69306247,0.0001657,2]
[350803487,1738138240567,-284.30693753,0.0001657,2]
[350803488,1738138240577,-500.0,0.00016572,2]
[350803489,1738138240586,-429.54231207,0.00016572,2]
[350803562,1738138242957,-500.0,0.00016549,2]
[350803563,1738138242967,-70.45768793,0.00016572,2]
[350803564,1738138242976,-500.0,0.00016573,2]
[350803565,1738138242985,-500.0,0.00016573,2]
[350803566,1738138242994,-500.0,0.00016573,2]
[350803567,1738138243003,-500.0,0.00016573,2]
[350803568,1738138243012,-500.0,0.00016573,2]
[350803569,1738138243021,-500.0,0.00016573,2]
[350803570,1738138243031,-500.0,0.00016573,2]
[350803571,1738138243041,-500.0,0.00016573,2]
[350803573,1738138243050,-500.0,0.00016573,2]
[350803574,1738138243061,-260.12197243,0.00016573,2]
[350803577,1738138243071,-576.2045807,0.00016573,2]
[350803578,1738138243080,-1824.87727079,0.0001658,2]
[350803579,1738138243091,-859.67700522,0.0001658,2]
[350803581,1738138243103,-315.44572399,0.0001658,2]
[350803582,1738138243112,-1824.87727079,0.0001659,2]
[350804150,1738138322341,1100.0,0.00014464,2]
[350804587,1738138499124,325.62,0.00010959,2]
[350804588,1738138509635,325.62,0.00010959,2]
[350804589,1738138520234,217.08,0.00010959,2]
[350804590,1738138530755,180.9,0.00010959,2]
[350804591,1738138541274,150.75,0.00010959,2]
[350804593,1738138551909,753.8,0.00010959,2]
[350804594,1738138553776,345.764648,0.00013973,2]
[350804597,1738138832136,300.0,0.00015101,2]
[350804598,1738138840855,635.56047904,0.00015101,2]
[350804616,1738139270501,393.16,0.00010959,2]
[350804619,1738139301492,273.12,0.00010959,2]
[350804620,1738139311992,227.6,0.00010959,2]
[350804622,1738139322685,363.94,0.00010959,2]
[350804624,1738139325336,500.0,0.00015101,2]
[350804625,1738139333196,363.94,0.00010959,2]
[350804626,1738139343661,508.87,0.00010959,2]
[350804627,1738139354179,524.91,0.00010959,2]
[350804628,1738139355459,999.42384505,0.00015101,2]
[350804630,1738139364666,521.47,0.00010959,2]
[350804631,1738139375407,504.6,0.00010959,2]
[350804632,1738139385880,478.86,0.00010959,2]
[350804633,1738139387572,339.215474,0.00013973,2]
[350804634,1738139396369,399.05,0.00010959,2]
[350804635,1738139407145,332.54,0.00010959,2]
[350804636,1738139417648,400.06,0.00010959,2]
[350804641,1738139428343,361.53,0.00010959,2]
[350804681,1738139432412,-2049.0,0.00015311,2]
[350804683,1738139432422,-2608.5553552,0.000155,2]
[350804685,1738139432433,-495.35790139,0.000155,2]
[350804687,1738139432442,-300.0,0.00015621,2]
[350804689,1738139432451,-5093.6196248,0.00015622,2]
[350804691,1738139432461,-1100.0,0.00015834,2]
[350804693,1738139432471,-3000.0,0.00016,2]
[350804695,1738139432480,-8032.32420548,0.00016359,2]
[350804697,1738139432489,-168.37890296,0.00016446,2]
[350804699,1738139432498,-500.0,0.00016546,2]
[350804701,1738139432508,-1763.18,0.00016546,2]
[350804703,1738139432518,-1028.01,0.00016546,2]
[350804705,1738139432527,-500.0,0.00016546,2]
[350804706,1738139432537,-486.05,0.00016546,2]
[350804707,1738139432546,-500.0,0.00016546,2]
[350804708,1738139432555,-606.5,0.00016546,2]
[350804709,1738139432565,-500.0,0.00016546,2]
[350804710,1738139432575,-500.0,0.00016546,2]
[350804712,1738139432584,-500.0,0.00016546,2]
[350804714,1738139432593,-500.0,0.00016546,2]
[350804715,1738139432602,-500.0,0.00016546,2]
[350804716,1738139432611,-500.0,0.00016546,2]
[350804717,1738139432621,-500.0,0.00016546,2]
[350804718,1738139432630,-500.0,0.00016546,2]
[350804719,1738139432640,-500.0,0.00016546,2]
[350804720,1738139432650,-794.45,0.00016546,2]
[350804721,1738139432660,-500.0,0.00016547,2]
[350804722,1738139432669,-449.46208928,0.00016547,2]
[350804723,1738139432679,-500.0,0.00016547,2]
[350804724,1738139432688,-500.0,0.00016547,2]
[350804725,1738139432698,-500.0,0.00016547,2]
[350804726,1738139432708,-500.0,0.00016547,2]
[350804727,1738139432717,-500.0,0.00016547,2]
[350804728,1738139432726,-161.45168056,0.00016547,2]
[350804729,1738139432736,-500.0,0.00016547,2]
[350804730,1738139432745,-500.0,0.00016547,2]